bitfinex/quotes_ETHUSD_20240709
["timestamp","ask_amount","ask_price","bid_price","bid_amount"]
[1720564640602,0.76055016,3066.4,3066.1,1.068]
[1720564640806,0.76051945,3066.4,3066.1,1.068]
[1720564641218,5.80388913,3066.8,3066.1,1.068]
[1720564641520,2.05157201,3066.5,3066.1,1.068]
[1720564641730,0.76052029,3066.4,3066.1,1.068]
[1720564643614,2.8120923,3066.4,3066.1,1.068]
[1720564643810,0.76052029,3066.3,3066.1,1.068]
[1720564644014,2.8120923,3066.4,3066.1,1.068]
[1720564644325,2.39350068,3066.7,3066.1,1.068]
[1720564644326,0.76054165,3066.3,3066.1,1.068]
[1720564644643,2.81199911,3066.4,3066.1,1.068]
[1720564644846,0.76054165,3066.3,3066.1,1.068]
[1720564645855,0.76054165,3066.4,3066.1,1.068]
[1720564647515,2.05161827,3066.4,3066.1,1.068]
[1720564647843,0.76053737,3066.3,3066.1,1.068]
[1720564648047,0.76053737,3066.4,3066.1,1.068]
[1720564648360,0.76053737,3066.4,3066.3,1.068]
[1720564648651,0.76053737,3066.5,3066.3,1.068]
[1720564650918,2.05157025,3066.6,3066.3,1.068]
[1720564651117,0.76052545,3066.5,3066.3,1.068]
[1720564651447,2.05163041,3066.6,3066.3,1.068]
[1720564651747,0.76052184,3066.5,3066.3,1.068]
[1720564653746,0.76052184,3066.5,3066.3,3.3875]
[1720564653912,2.05163041,3066.7,3066.4,0.33875]
[1720564653913,0.76052184,3066.6,3066.4,0.33875]
[1720564654116,0.76052184,3066.6,3066.5,1.068]
[1720564654318,0.34148913,3066.8,3066.5,1.068]
[1720564654517,2.05170843,3066.7,3066.5,1.068]
[1720564654757,0.76052051,3066.6,3066.5,1.068]
[1720564654960,0.76052051,3066.6,3066.5,1.440625]
[1720564655257,2.05170843,3067.0,3066.5,3.760125]
[1720564655431,0.00082059,3067.1,3066.9,1.068]
[1720564655615,0.00082059,3067.1,3066.9,1.40675]
[1720564656312,0.00082059,3067.1,3066.9,1.068]
[1720564656850,5.30574191,3067.1,3066.7,1.068]
[1720564657038,0.76051289,3067.0,3066.7,1.068]
[1720564657754,0.76051724,3067.0,3066.7,1.068]
[1720564659739,0.76133783,3067.1,3066.7,1.068]
[1720564660317,2.81168304,3067.1,3066.7,1.068]
[1720564660518,0.00082059,3067.1,3066.7,3.3875]
[1720564660831,2.81170433,3067.1,3066.7,1.068]
[1720564661030,0.76056354,3067.0,3066.7,1.068]
[1720564661558,0.76055396,3067.0,3066.7,1.068]
[1720564662763,0.76055396,3067.0,3066.3,3.26123]
[1720564662945,0.7613493,3067.1,3066.9,1.068]
[1720564664267,0.00082059,3067.1,3066.9,1.068]
[1720564664440,0.76135853,3067.1,3066.9,1.068]
[1720564665160,0.00082059,3067.1,3066.9,1.068]
[1720564665660,0.76134787,3067.1,3066.9,1.068]
[1720564667798,0.00082059,3067.1,3066.9,1.068]
[1720564667948,4.45146833,3067.0,3066.6,1.068]
[1720564668144,2.81060085,3066.9,3066.6,1.068]
[1720564668376,0.76053252,3066.8,3066.6,1.068]
[1720564669050,2.05006833,3066.7,3065.9,2.3602]
[1720564669386,2.81060085,3066.6,3066.3,1.068]
[1720564669588,0.76053252,3066.5,3066.3,1.068]
[1720564670243,0.76053252,3066.6,3066.3,1.068]
[1720564670446,0.76053252,3066.6,3066.5,1.068]
[1720564670745,2.05006833,3066.9,3066.5,1.068]
[1720564670950,2.05006833,3066.9,3066.4,2.3602]
[1720564670951,0.76052772,3066.8,3066.7,1.068]
[1720564671151,0.76054169,3066.8,3066.7,1.068]
[1720564671453,0.76054169,3066.9,3066.7,1.068]
[1720564671658,0.76054175,3066.9,3066.7,1.068]
[1720564672483,0.76058684,3066.9,3066.7,1.068]
[1720564673190,3.0,3067.2,3066.7,1.068]
[1720564673191,2.05093971,3067.1,3066.7,1.068]
[1720564673388,1.06060804,3067.0,3066.7,1.068]
[1720564673594,5.8106451,3067.0,3066.7,1.068]
[1720564673766,3.0,3067.0,3066.7,1.068]
[1720564673957,0.76054317,3066.9,3066.7,1.068]
[1720564674156,3.76054317,3067.0,3066.7,1.068]
[1720564674382,0.76054317,3066.9,3066.7,1.068]
[1720564674555,5.05011912,3067.0,3066.7,1.068]
[1720564674878,0.7605377,3066.9,3066.7,1.068]
[1720564675858,3.7605377,3067.0,3066.7,1.068]
[1720564676080,0.7605377,3066.9,3066.7,1.068]
[1720564676281,3.7605377,3067.0,3066.7,1.068]
[1720564676486,0.7605377,3066.9,3066.7,1.068]
[1720564676686,3.7605377,3067.0,3066.7,1.068]
[1720564676889,0.7605377,3066.9,3066.7,1.068]
[1720564678006,0.76054601,3067.0,3066.7,1.068]
[1720564678173,2.05100888,3067.1,3066.7,1.068]
[1720564678496,0.76054601,3067.0,3066.7,1.068]
[1720564680763,0.00082059,3067.1,3066.7,1.068]
[1720564680962,0.76139329,3067.1,3066.9,1.068]
[1720564681196,0.76139329,3067.1,3066.9,3.5092]
[1720564681397,0.00082059,3067.1,3066.9,3.86012]
[1720564682303,0.00082059,3067.1,3066.9,1.068]
[1720564682664,0.76137591,3067.1,3066.9,1.068]
[1720564683703,0.00082059,3067.1,3066.9,1.068]
[1720564684468,0.00082059,3067.1,3067.0,2.3996]
[1720564687193,0.00082059,3067.1,3066.9,1.068]
[1720564687422,0.00082059,3067.1,3066.7,2.3382]
[1720564687739,0.00082059,3067.1,3067.0,1.068]
[1720564698066,0.00082059,3067.1,3067.0,3.3915]
[1720564699522,0.00082059,3067.1,3067.0,1.068]
[1720564701060,0.76181202,3067.1,3067.0,1.068]
[1720564701951,0.76181541,3067.1,3067.0,1.068]
[1720564703873,0.00082059,3067.1,3067.0,1.068]
[1720564704232,0.76182534,3067.1,3067.0,1.068]
[1720564704967,0.76182723,3067.1,3067.0,1.068]
[1720564707178,0.00082248,3067.1,3067.0,1.068]
[1720564707523,0.76182657,3067.1,3067.0,1.068]
[1720564710585,0.76202443,3067.1,3067.0,1.068]
[1720564711093,0.76203915,3067.1,3067.0,1.068]
[1720564711459,0.76203915,3067.1,3066.2,9.6231]
[1720564711656,2.8158016,3067.1,3066.9,1.068]
[1720564711859,0.76121667,3067.0,3066.9,1.068]
[1720564712061,0.76203915,3067.1,3066.9,1.068]
[1720564713956,0.76202353,3067.1,3066.9,1.068]
[1720564715691,0.00082248,3067.1,3066.9,1.068]
[1720564718805,0.76203486,3067.1,3066.9,1.068]
[1720564720088,0.76203486,3067.1,3067.0,2.4605]
[1720564720289,0.00082248,3067.1,3067.0,2.81335]
[1720564721358,0.00082248,3067.1,3067.0,2.87855347]
[1720564721565,3.61312423,3067.7,3067.1,2.4605]
[1720564721566,0.1122623,3067.7,3067.1,2.4605]
[1720564721908,0.1122623,3067.7,3067.6,1.068]
[1720564722469,0.1122623,3067.7,3067.5,2.4605]
[1720564722689,0.1122623,3067.7,3067.6,1.068]
[1720564727870,0.1122623,3067.7,3067.6,4.32787]
[1720564728178,0.1122623,3067.7,3067.6,7.58774]
[1720564728381,0.1122623,3067.7,3067.6,8.592564]
[1720564729724,0.1122623,3067.7,3067.6,10.891164]
[1720564735225,0.1122623,3067.7,3067.6,7.631294]
[1720564735989,0.1122623,3067.7,3067.6,10.891164]
[1720564736700,0.1122623,3067.7,3067.6,7.631294]
[1720564736920,0.1122623,3067.7,3067.6,10.891164]
[1720564739845,0.1122623,3067.7,3067.6,7.631294]
[1720564740551,0.1122623,3067.7,3067.6,2.072824]
[1720564740745,0.1122623,3067.7,3067.6,4.32787]
[1720564741541,0.1122623,3067.7,3067.6,1.068]
[1720564741735,0.1122623,3067.7,3067.6,4.32787]
[1720564744722,0.1122623,3067.7,3067.6,6.69717]
[1720564750557,0.1122623,3067.7,3067.6,1.068]
[1720564750761,0.1122623,3067.7,3067.6,1.741568]
[1720564751353,0.1122623,3067.7,3067.6,5.001438]
[1720564753578,0.1122623,3067.7,3067.6,1.741568]
[1720564753735,0.1122623,3067.7,3067.4,2.4077]
[1720564753938,0.1122623,3067.7,3067.0,0.35285]
[1720564754187,2.2793,3067.6,3067.5,1.068]
[1720564756097,0.1122623,3067.7,3067.5,1.068]
[1720564757673,2.4516,3067.6,3067.5,1.068]
[1720564763653,2.4516,3067.6,3066.7,2.3746]
[1720564764008,2.4516,3067.6,3067.5,1.068]
[1720564767255,3.21299129,3067.6,3067.5,1.068]
[1720564767457,2.4516,3067.6,3067.5,1.068]
[1720564767815,3.21299621,3067.6,3067.3,1.068]
[1720564768111,2.4516,3067.6,3067.3,1.068]
[1720564769999,2.91327772,3067.6,3066.5,10.38944]
[1720564770158,2.4516,3067.6,3067.4,1.068]
[1720564770359,2.4516,3067.6,3066.5,7.1284]
[1720564770560,2.1651772,3067.7,3066.5,7.1284]
[1720564770561,2.4881,3067.4,3067.3,1.068]
[1720564770865,3.0381,3067.4,3067.3,1.068]
[1720564771378,3.0381,3067.4,3067.1,1.068]
[1720564772302,2.4222,3067.2,3065.9,2.4111]
[1720564772600,2.4222,3067.0,3065.9,2.4111]
[1720564772816,1.31173121,3066.9,3066.5,1.068]
[1720564772960,0.86838339,3066.9,3066.5,1.068]
[1720564773160,1.63010988,3066.9,3066.5,1.068]
[1720564773410,0.86838339,3066.9,3066.5,1.068]
[1720564773781,0.55,3066.9,3066.7,1.068]
[1720564774298,0.55,3066.9,3066.5,1.068]
[1720564775664,0.55,3066.9,3065.9,2.4111]
[1720564775886,0.55,3066.9,3066.6,1.068]
[1720564790225,0.34158714,3067.2,3066.6,1.068]
[1720564790547,0.55,3067.1,3066.8,1.068]
[1720564794461,2.3668,3067.0,3066.1,2.4983]
[1720564794624,2.3668,3067.0,3066.6,1.068]
[1720564797276,2.3668,3067.0,3065.8,5.76001]
[1720564797568,0.55,3066.9,3066.6,1.068]
[1720564800678,2.3668,3066.8,3066.4,1.068]
[1720564800953,2.65848,3066.8,3066.4,1.068]
[1720564801489,2.3668,3066.8,3066.4,1.068]
[1720564802449,2.3668,3066.8,3066.6,1.068]
[1720564808415,4.3343219,3067.0,3066.6,1.068]
[1720564808613,0.76170514,3066.9,3066.8,1.068]
[1720564808910,0.76170514,3067.0,3066.8,1.068]
[1720564809294,2.81362704,3067.0,3066.6,1.068]
[1720564809506,0.76170514,3066.9,3066.6,1.068]
[1720564810213,0.55,3067.1,3066.6,1.068]
[1720564810411,2.05304643,3067.0,3066.6,1.068]
[1720564810625,0.55,3067.1,3066.6,1.068]
[1720564810837,2.05352519,3067.0,3066.6,1.068]
[1720564811137,2.2824,3066.8,3066.0,2.352]
[1720564811343,0.76173261,3066.7,3066.4,1.068]
[1720564811545,0.7618389,3066.7,3066.4,1.068]
[1720564813605,0.7618389,3066.7,3066.0,2.352]
[1720564813606,2.05526814,3066.8,3066.6,1.068]
[1720564813944,1.52349215,3066.7,3066.6,1.068]
[1720564814107,0.76174158,3066.7,3066.6,1.068]
[1720564815749,2.81696346,3066.7,3066.6,1.068]
[1720564816227,0.76174158,3066.7,3066.6,1.068]
[1720564816836,0.76174158,3066.7,3066.4,1.068]
[1720564817157,4.86288574,3066.6,3066.1,1.068]
[1720564817446,2.0573068,3066.2,3066.1,1.068]
[1720564817647,2.40038574,3066.4,3066.1,1.068]
[1720564818328,2.40038574,3066.4,3065.6,2.3507]
[1720564818532,2.40038574,3066.4,3064.8,12.16]
[1720564818533,2.05771345,3066.0,3065.3,2.3507]
[1720564818734,2.05771345,3066.0,3065.6,1.068]
[1720564818735,2.05771345,3065.8,3065.6,1.068]
[1720564818934,2.05771345,3065.7,3065.6,1.068]
[1720564819143,2.05771345,3065.8,3065.6,1.068]
[1720564819311,2.05771345,3065.9,3065.6,1.068]
[1720564819838,2.05771345,3065.9,3065.8,1.068]
[1720564820008,2.05771345,3066.0,3065.8,1.068]
[1720564820203,2.4625,3066.4,3065.9,1.068]
[1720564820204,2.05656644,3066.1,3065.9,1.068]
[1720564820451,2.05656644,3066.2,3065.9,1.068]
[1720564820617,2.05615017,3066.2,3066.1,1.068]
[1720564821504,2.05587489,3066.2,3066.1,1.068]
[1720564821833,2.05587489,3066.5,3066.1,1.068]
[1720564822148,2.81761647,3066.7,3066.4,1.068]
[1720564823461,0.76174158,3066.7,3066.4,1.068]
[1720564823677,2.81732771,3066.7,3066.4,1.068]
[1720564824946,0.76174158,3066.7,3066.4,1.068]
[1720564825147,2.81732771,3066.7,3066.4,1.068]
[1720564825347,0.76174158,3066.7,3066.4,1.068]
[1720564825665,2.81732771,3066.7,3066.4,1.068]
[1720564826450,0.76174158,3066.7,3066.4,1.068]
[1720564827047,2.81730037,3066.7,3066.4,1.068]
[1720564827269,2.05555879,3066.7,3066.4,1.068]
[1720564830190,3.34160329,3066.9,3066.4,1.068]
[1720564830357,2.05560003,3066.7,3066.4,1.068]
[1720564830751,2.05567564,3066.6,3066.2,1.068]
[1720564830974,2.05567564,3066.5,3066.2,1.068]
[1720564831181,2.05567564,3066.4,3066.0,1.068]
[1720564832891,2.05567564,3066.3,3066.0,1.068]
[1720564833201,2.05567564,3066.4,3066.2,1.068]
[1720564833555,2.05562339,3066.5,3066.2,1.068]
[1720564833861,0.55,3066.4,3066.2,1.068]
[1720564834260,0.55,3066.4,3065.6,2.3507]
[1720564834461,0.55,3066.4,3066.2,1.068]
[1720564834462,2.05562339,3066.3,3066.2,1.068]
[1720564834758,2.05562339,3066.4,3066.2,1.068]
[1720564836155,2.05562339,3066.5,3066.2,1.068]
[1720564836361,2.05562339,3066.6,3066.4,1.068]
[1720564837000,2.05543251,3066.6,3066.4,1.068]
[1720564839577,3.0,3067.0,3066.2,1.068]
[1720564839578,2.05543251,3066.5,3066.2,1.068]
[1720564840307,2.05571167,3066.5,3066.2,1.068]
[1720564840877,2.05561744,3066.5,3066.2,1.068]
[1720564841409,2.05561744,3066.6,3066.4,1.068]
[1720564841608,2.05561744,3066.7,3066.4,1.068]
[1720564842283,2.05561744,3066.6,3066.4,1.068]
[1720564842484,2.05561744,3066.7,3066.4,1.068]
[1720564843717,2.0555813,3066.7,3066.4,1.068]
[1720564845905,2.05570389,3066.7,3066.4,1.068]
[1720564847394,2.05551435,3066.7,3066.4,1.068]
[1720564848723,2.05551435,3066.6,3066.4,1.068]
[1720564850500,3.0,3067.0,3066.4,1.068]
[1720564850708,2.05483343,3066.6,3066.1,2.2618]
[1720564851019,3.55,3066.9,3066.3,1.068]
[1720564851226,2.05485556,3066.7,3066.3,1.068]
[1720564853033,2.05485556,3066.7,3066.5,1.068]
[1720564854045,0.55,3066.9,3066.5,1.068]
[1720564854216,2.2642,3067.1,3066.7,1.068]
[1720564854217,2.05368053,3066.8,3066.7,1.068]
[1720564854416,7.46,3067.2,3066.7,1.068]
[1720564854417,2.05368053,3066.9,3066.7,1.068]
[1720564854605,2.05368053,3067.0,3066.7,1.068]
[1720564857005,2.05368053,3066.9,3066.7,1.068]
[1720564857203,2.05368053,3067.0,3066.7,1.068]
[1720564857416,2.05320331,3067.0,3066.7,1.068]
[1720564858954,2.05193324,3067.0,3066.7,1.068]
[1720564859616,2.05193324,3067.0,3066.7,1.41026]
[1720564859952,3.0,3067.2,3066.9,1.068]
[1720564860109,3.0,3067.3,3066.9,1.068]
[1720564860304,0.55,3067.2,3066.9,1.068]
[1720564860952,0.55,3067.2,3066.7,1.41026]
[1720564861837,3.0,3067.3,3066.8,0.376486]
[1720564862044,5.3936726,3067.5,3066.8,0.376486]
[1720564862256,0.55,3067.4,3066.8,0.376486]
[1720564862458,3.55,3067.4,3066.8,0.376486]
[1720564862627,5.9436726,3067.4,3066.7,1.068]
[1720564863348,5.94346592,3067.4,3066.7,1.068]
[1720564864638,3.55,3067.4,3066.7,1.068]
[1720564864952,2.05148129,3067.2,3066.7,1.068]
[1720564865121,2.05148129,3067.1,3066.7,1.068]
[1720564866671,2.05214996,3067.1,3066.7,1.068]
[1720564866853,2.05214996,3067.1,3066.7,1.41026]
[1720564869929,3.0,3067.3,3066.7,1.41026]
[1720564870159,2.05204807,3067.1,3066.7,1.068]
[1720564870464,2.05194863,3067.1,3066.6,2.3546]
[1720564870643,2.05194863,3067.0,3066.7,1.068]
[1720564872231,2.05194863,3067.1,3066.7,1.068]
[1720564873466,2.05176684,3067.1,3066.7,1.068]
[1720564873991,2.05176684,3067.1,3066.5,1.068]
[1720564873992,2.05176684,3066.9,3066.5,1.068]
[1720564876359,2.05176684,3066.9,3066.5,1.42391]
[1720564876686,2.4774,3067.1,3066.5,1.42391]
[1720564876986,2.05147263,3066.9,3066.5,1.42391]
[1720564877484,2.05147263,3066.9,3066.7,0.924835]
[1720564880161,2.05147263,3066.9,3066.5,1.068]
[1720564880162,2.05141851,3066.9,3066.5,1.068]
[1720564880559,2.051567,3066.9,3066.5,1.068]
[1720564881486,2.05183932,3066.9,3066.5,1.068]
[1720564882291,2.05183932,3066.8,3066.5,1.068]
[1720564882664,4.87121254,3067.1,3066.5,1.068]
[1720564882665,2.05183932,3066.9,3066.5,1.068]
[1720564883495,2.4774,3067.1,3066.5,1.068]
[1720564883794,2.05199577,3066.9,3066.5,1.068]
[1720564885152,2.05199577,3066.8,3066.5,1.068]
[1720564886269,2.05199577,3066.9,3066.5,1.068]
[1720564886449,2.05199577,3066.8,3066.5,1.068]
[1720564887002,2.0522941,3066.8,3066.5,1.068]
[1720564889902,2.0522941,3066.7,3066.5,1.068]
[1720564890269,2.4774,3067.1,3066.5,1.068]
[1720564890593,2.05225146,3066.7,3066.5,1.068]
[1720564890756,0.79774,3067.0,3066.5,1.068]
[1720564890973,2.052226,3066.7,3066.5,1.068]
[1720564891511,2.052226,3066.8,3066.5,1.068]
[1720564891680,2.05229755,3066.8,3066.5,1.068]
[1720564892064,2.05229755,3066.7,3066.5,1.068]
[1720564893789,2.05241149,3066.7,3066.5,1.068]
[1720564893980,2.05242746,3066.7,3066.5,1.068]
[1720564895100,2.05242746,3066.8,3066.5,1.068]
[1720564895300,2.05242746,3066.7,3066.5,1.068]
[1720564897199,0.56694037,3066.9,3066.5,1.068]
[1720564897385,2.05270434,3066.7,3066.5,1.068]
[1720564900721,2.05275262,3066.7,3066.5,1.068]
[1720564901099,2.05275573,3066.7,3066.5,1.068]
[1720564901924,2.05275573,3066.9,3066.5,1.068]
[1720564902104,2.05275573,3066.9,3066.7,1.068]
[1720564902617,2.05275573,3066.9,3066.8,2.2664]
[1720564904002,3.0,3067.3,3066.8,2.2664]
[1720564904203,2.0546022,3066.9,3066.7,1.068]
[1720564905011,2.0546022,3066.8,3066.7,1.068]
[1720564905816,2.0546022,3066.9,3066.7,1.068]
[1720564906027,1.8788954,3067.2,3066.7,1.068]
[1720564906209,2.05457589,3066.9,3066.7,1.068]
[1720564907109,2.05457589,3067.0,3066.7,1.068]
[1720564907306,2.05457589,3067.0,3066.9,1.068]
[1720564907611,2.05457159,3067.0,3066.9,1.068]
[1720564908112,2.39700019,3067.2,3066.9,1.068]
[1720564908718,2.0546649,3067.0,3066.9,1.068]
[1720564909311,2.39700019,3067.2,3066.9,1.068]
[1720564910847,3.0,3067.4,3066.9,1.068]
[1720564911024,2.39710304,3067.2,3066.9,1.068]
[1720564911224,5.39710304,3067.2,3066.9,1.068]
[1720564911414,5.39709246,3067.2,3066.9,1.068]
[1720564912124,5.39710902,3067.2,3066.9,1.068]
[1720564914355,3.0,3067.2,3066.9,1.068]
[1720564914560,2.39714361,3067.2,3066.9,1.068]
[1720564914721,5.39714361,3067.2,3066.9,1.068]
[1720564916414,2.05472446,3067.0,3066.9,1.068]
[1720564916615,5.39714361,3067.2,3066.9,1.068]
[1720564916856,6.07418454,3067.2,3066.9,1.068]
[1720564917841,6.07419912,3067.2,3066.9,1.068]
[1720564918370,2.05470757,3067.0,3066.9,1.068]
[1720564919079,5.39715819,3067.2,3066.9,1.068]
[1720564919276,5.39715819,3067.2,3066.7,1.068]
[1720564919479,2.05462706,3066.9,3066.7,1.068]
[1720564919941,2.05462706,3066.8,3066.7,1.068]
[1720564920339,2.05462706,3066.8,3066.5,1.068]
[1720564920837,2.05460171,3066.8,3066.5,1.068]
[1720564921379,2.05457138,3066.8,3066.5,1.068]
[1720564921845,2.05457138,3066.7,3066.4,2.4898]
[1720564922057,0.20545714,3066.8,3066.4,1.068]
[1720564922239,2.05379901,3066.7,3066.4,1.068]
[1720564922662,2.05379901,3066.7,3066.6,1.068]
[1720564923779,2.05368891,3066.8,3066.6,1.068]
[1720564923954,2.3959704,3067.0,3066.3,1.068]
[1720564923955,2.2590578,3066.7,3066.3,1.068]
[1720564924144,2.05368891,3066.6,3066.3,1.068]
[1720564925354,2.05368891,3066.6,3066.2,2.2963]
[1720564925566,2.05368891,3066.6,3066.3,1.068]
[1720564926877,2.2590578,3066.6,3066.3,1.068]
[1720564927095,0.55,3066.5,3065.9,1.068]
[1720564927243,2.05205856,3066.2,3065.9,1.068]
[1720564927646,2.05205856,3066.1,3065.9,1.068]
[1720564928392,1.68396456,3066.1,3065.9,1.068]
[1720564928748,2.94392978,3066.5,3065.9,1.068]
[1720564929089,2.94392978,3066.5,3066.1,1.068]
[1720564929269,0.55,3066.5,3066.1,1.068]
[1720564929444,0.55,3066.5,3065.9,1.068]
[1720564930455,0.55,3066.5,3066.1,1.068]
[1720564931782,2.39177243,3066.7,3066.4,1.068]
[1720564932347,3.0,3066.8,3066.4,1.068]
[1720564932548,0.55,3066.7,3066.4,1.068]
[1720564934170,1.30995904,3066.7,3066.0,2.4159]
[1720564934487,2.04917768,3066.5,3066.2,1.068]
[1720564934787,0.75995904,3066.4,3066.2,1.068]
[1720564935155,2.80913672,3066.5,3066.2,1.068]
[1720564935376,0.75995904,3066.4,3066.2,1.068]
[1720564935576,0.75995904,3066.5,3066.2,1.068]
[1720564936957,0.75997627,3066.5,3066.2,1.068]
[1720564938177,2.80896714,3066.6,3066.2,1.068]
[1720564938519,0.75997627,3066.5,3066.2,1.068]
[1720564940515,0.75996254,3066.5,3066.2,1.068]
[1720564940693,0.75996254,3066.5,3066.4,1.068]
[1720564942417,0.75996254,3066.6,3066.4,1.068]
[1720564942617,2.80868473,3066.6,3066.4,1.068]
[1720564942825,0.75996254,3066.5,3066.4,1.068]
[1720564943708,0.55,3066.7,3066.4,1.068]
[1720564943987,2.0485509,3066.6,3066.4,1.068]
[1720564944203,0.75995796,3066.5,3066.4,1.068]
[1720564944490,2.5985509,3066.7,3066.0,2.65749]
[1720564944491,2.80850886,3066.6,3066.3,1.068]
[1720564944819,2.5985509,3066.7,3066.3,1.068]
[1720564945004,0.75995404,3066.6,3066.3,1.068]
[1720564946504,1.30995404,3066.7,3066.3,1.068]
[1720564947198,0.55,3066.7,3066.3,1.068]
[1720564953564,5.04887711,3066.8,3066.5,1.068]
[1720564953769,2.04887711,3066.8,3066.5,1.068]
[1720564953923,3.0,3067.0,3066.5,1.068]
[1720564954123,2.04923059,3066.8,3066.7,1.068]
[1720564954362,2.04923059,3067.1,3066.8,2.4431]
[1720564954582,2.04923059,3067.2,3066.8,2.4431]
[1720564955126,2.04923059,3067.2,3066.9,1.068]
[1720564957368,3.0,3067.3,3066.9,1.068]
[1720564957574,2.59963964,3067.2,3066.9,1.068]
[1720564960765,0.55,3067.2,3066.9,1.068]
[1720564960969,2.05049207,3067.2,3066.9,1.068]
[1720564961171,3.55,3067.3,3066.9,1.068]
[1720564961374,2.05058686,3067.2,3066.9,1.068]
[1720564964500,2.05048164,3067.2,3066.9,1.068]
[1720564966299,3.55,3067.3,3066.9,1.068]
[1720564966494,2.05043757,3067.2,3066.9,1.068]
[1720564966697,5.05043757,3067.2,3066.9,1.068]
[1720564967791,3.0,3067.2,3066.9,1.068]
[1720564967990,2.05033153,3067.2,3066.9,1.068]
[1720564968156,5.05033153,3067.2,3066.9,1.068]
[1720564968362,3.0,3067.2,3066.9,1.068]
[1720564971369,2.5999511,3067.3,3066.9,1.068]
[1720564971565,3.0,3067.2,3066.9,1.068]
[1720564971811,2.05010261,3067.5,3067.2,2.4127]
[1720564971964,2.05010261,3067.8,3067.4,1.068]
[1720564972162,2.05010261,3067.9,3067.6,1.068]
[1720564972406,2.05010261,3068.0,3067.6,1.068]
[1720564972723,2.04950479,3067.9,3067.6,1.068]
[1720564973225,2.04950479,3068.0,3067.6,1.068]
[1720564973895,5.04950479,3068.0,3067.6,1.068]
[1720564974524,3.0,3068.0,3067.6,1.068]
[1720564974727,2.2769,3068.1,3067.2,2.4127]
[1720564974728,2.2769,3067.6,3067.2,1.068]
[1720564975080,2.2769,3067.6,3066.9,2.4127]
[1720564975286,0.55,3067.5,3067.0,1.068]
[1720564976500,0.55,3067.5,3067.2,1.068]
[1720564981380,3.09771189,3067.5,3067.0,1.068]
[1720564981687,2.59891438,3067.5,3067.0,1.068]
[1720564982187,2.59891438,3067.5,3067.2,1.068]
[1720564983488,0.55,3067.5,3067.2,1.068]
[1720564987518,0.55,3067.5,3067.4,1.068]
[1720564987919,0.55,3067.6,3067.4,1.068]
[1720564988131,0.55,3067.5,3067.4,1.068]
[1720564988303,0.55,3067.5,3067.2,1.068]
[1720564988509,2.9452,3067.5,3067.2,1.068]
[1720564988745,2.9452,3067.5,3067.0,0.23097]
[1720564988746,2.9452,3067.5,3067.4,1.068]
[1720564991202,0.55,3067.5,3067.4,1.068]
[1720564995238,2.05069373,3067.6,3067.4,1.068]
[1720564997528,2.05171885,3067.6,3067.4,1.068]
[1720564998332,2.05171885,3067.5,3067.4,1.068]
[1720564998933,2.60171885,3067.5,3067.2,1.068]
[1720565000864,2.60257392,3067.5,3067.2,1.068]
[1720565001444,2.60262457,3067.5,3067.2,1.068]
[1720565002163,0.55,3067.5,3067.2,1.068]
[1720565002333,2.60265257,3067.5,3067.2,1.068]
[1720565002529,2.05265257,3067.4,3067.2,1.068]
[1720565004448,2.05271096,3067.4,3067.2,1.068]
[1720565006354,2.05271096,3067.3,3067.2,1.068]
[1720565006873,2.3104,3067.2,3066.5,2.4979]
[1720565007037,2.05291258,3067.0,3066.8,1.068]
[1720565007854,2.05277078,3067.0,3066.8,1.068]
[1720565010605,2.05277078,3067.0,3066.2,2.2569]
[1720565010606,2.60277078,3066.9,3066.2,2.2569]
[1720565010761,2.60277078,3066.9,3066.5,1.068]
[1720565010762,2.05254644,3066.6,3066.5,1.068]
[1720565011116,2.05254644,3066.6,3066.3,1.068]
[1720565011117,2.05245165,3066.6,3066.3,1.068]
[1720565011261,2.05245165,3066.6,3066.5,1.068]
[1720565011462,0.98764517,3066.6,3065.9,2.4173]
[1720565011657,2.324,3066.8,3066.3,1.068]
[1720565011658,2.05176613,3066.5,3066.3,1.068]
[1720565011897,0.55,3066.4,3066.3,1.068]
[1720565012463,0.55,3066.5,3066.3,1.068]
[1720565012709,0.55,3066.5,3066.4,1.068]
[1720565014397,0.55,3066.6,3066.4,1.068]
[1720565017386,0.55,3066.7,3066.4,1.068]
[1720565017587,1.38661342,3066.7,3066.4,1.068]
[1720565017899,0.55,3066.7,3066.4,1.068]
[1720565022505,0.34156838,3066.6,3066.4,1.068]
[1720565022736,0.55,3066.5,3065.9,2.4173]
[1720565023009,0.55,3066.5,3066.4,1.068]
[1720565029222,0.55,3066.5,3065.9,2.4173]
[1720565029420,0.55,3066.5,3066.3,1.068]
[1720565036819,0.34156838,3066.6,3066.3,1.068]
[1720565036986,0.34156838,3066.6,3066.5,1.068]
[1720565037186,0.89156838,3066.6,3066.5,1.068]
[1720565037390,0.05683003,3067.6,3066.5,1.068]
[1720565037610,3.50660123,3067.7,3067.5,3.3899]
[1720565037832,3.50660123,3067.7,3067.6,0.33899]
[1720565038012,3.50660123,3067.7,3067.5,2.3219]
[1720565038230,3.50660123,3067.7,3067.6,1.068]
[1720565044647,0.1122623,3067.7,3067.6,1.068]
[1720565046359,0.1122623,3067.7,3067.6,6.88366233]